fUSD/lending_fUSD_20241001
["ID","MTS","AMOUNT","RATE_DAILY","PERIOD"]
[339668919,1727820765444,-500.0,0.00039452,120]
[339668920,1727820765453,-1489.52,0.00039452,120]
[339668921,1727820765462,-532.71,0.00039452,120]
[339668922,1727820765472,-631.55,0.00039452,120]
[339668923,1727820765482,-2949.18,0.00039452,120]
[339668924,1727820765492,-1129.67,0.00039452,120]
[339668925,1727820765503,-500.0,0.00039452,7]
[339668926,1727820765512,-632.15,0.00039452,120]
[339668927,1727820765522,-3225.97,0.00039452,120]
[339668928,1727820765532,-692.07,0.00039452,120]
[339668929,1727820765542,-534.81,0.00039452,120]
[339668930,1727820765551,-1721.35,0.00039452,120]
[339668931,1727820765561,-500.0,0.00039452,120]
[339668932,1727820765570,-500.0,0.00039452,120]
[339668933,1727820765579,-500.0,0.00039452,120]
[339668934,1727820765589,-546.17,0.00039452,120]
[339668935,1727820765598,-500.0,0.00039452,120]
[339668936,1727820765608,-500.0,0.00039452,120]
[339668937,1727820765617,-500.0,0.00039452,120]
[339668938,1727820765627,-650.82,0.00039452,120]
[339668939,1727820765636,-500.0,0.00039452,120]
[339668940,1727820765646,-500.0,0.00039452,120]
[339668941,1727820765659,-500.0,0.00039452,120]
[339668942,1727820765669,-1437.52,0.00039452,120]
[339668943,1727820765679,-518.0,0.00039452,120]
[339668944,1727820765688,-2907.14,0.00039452,120]
[339668945,1727820765699,-2926.57,0.00039452,120]
[339668946,1727820765708,-1025.17,0.00039452,120]
[339668947,1727820765718,-540.2407092,0.00039452,120]
[339668948,1727820765728,-500.0,0.00039452,120]
[339668949,1727820765738,-500.0,0.00039452,120]
[339668950,1727820765748,-1407.77,0.00039452,120]
[339668951,1727820765757,-860.32,0.00039452,120]
[339668952,1727820765767,-730.5,0.00039452,120]
[339668953,1727820765776,-1143.54,0.00039452,120]
[339668954,1727820765786,-500.0,0.00039452,120]
[339668955,1727820765795,-500.0,0.00039452,120]
[339668956,1727820765805,-1168.59,0.00039452,120]
[339668957,1727820765815,-500.0,0.00039452,120]
[339668958,1727820765824,-500.0,0.00039452,120]
[339668959,1727820765834,-773.63,0.00039452,120]
[339668960,1727820765843,-500.0,0.00039452,120]
[339668961,1727820765852,-660.94,0.00039452,120]
[339668962,1727820765861,-3040.17,0.00039452,120]
[339668963,1727820765870,-500.0,0.00039452,120]
[339668964,1727820765879,-942.17,0.00039452,120]
[339668965,1727820765889,-705.58,0.00039452,120]
[339668966,1727820765898,-668.07,0.00039452,120]
[339668967,1727820765908,-4496.99,0.00039452,120]
[339668968,1727820765917,-500.0,0.00039452,120]
[339668969,1727820765926,-1286.0,0.00039452,120]
[339668970,1727820765935,-500.0,0.00039452,120]
[339668971,1727820765944,-3133.99,0.00039452,120]
[339668972,1727820765954,-500.0,0.00039452,120]
[339668973,1727820765963,-500.0,0.00039452,120]
[339668974,1727820765972,-1188.4,0.00039452,120]
[339668975,1727820765981,-1397.93,0.00039452,120]
[339668976,1727820765991,-629.91,0.00039452,120]
[339668977,1727820766000,-500.0,0.00039452,120]
[339668978,1727820766009,-500.0,0.00039452,120]
[339668979,1727820766018,-3743.21,0.00039452,120]
[339668980,1727820766028,-500.0,0.00039452,120]
[339668981,1727820766039,-597.89,0.00039452,120]
[339668982,1727820766048,-500.0,0.00039452,120]
[339668983,1727820766058,-969.44,0.00039452,120]
[339668984,1727820766067,-1991.74,0.00039452,120]
[339668985,1727820766077,-1053.39,0.00039452,120]
[339668986,1727820766086,-1515.24,0.00039452,120]
[339668987,1727820766095,-500.0,0.00039452,120]
[339668988,1727820766104,-500.0,0.00039452,120]
[339668989,1727820766113,-500.0,0.00039452,120]
[339668990,1727820766123,-500.0,0.00039452,120]
[339668991,1727820766132,-700.15,0.00039452,120]
[339668992,1727820766141,-500.0,0.00039452,120]
[339668993,1727820766150,-1506.61,0.00039452,120]
[339668994,1727820766159,-515.1,0.00039452,120]
[339668995,1727820766168,-1051.28,0.00039452,120]
[339668996,1727820766177,-567.36,0.00039452,120]
[339668997,1727820766186,-500.0,0.00039452,120]
[339668998,1727820766195,-956.15,0.00039452,120]
[339668999,1727820766205,-500.0,0.00039452,120]
[339669000,1727820766214,-500.0,0.00039452,120]
[339669001,1727820766223,-3675.33,0.00039452,120]
[339669002,1727820766233,-500.0,0.00039452,120]
[339669003,1727820766242,-1785.58,0.00039452,120]
[339669004,1727820766251,-500.0,0.00039452,120]
[339669005,1727820766260,-535.14,0.00039452,120]
[339669006,1727820766269,-500.0,0.00039452,120]
[339669007,1727820766278,-500.0,0.00039452,120]
[339669008,1727820766287,-500.0,0.00039452,120]
[339669009,1727820766296,-1336.37,0.00039452,120]
[339669010,1727820766306,-500.0,0.00039452,120]
[339669011,1727820766317,-2586.99,0.00039452,120]
[339669012,1727820766327,-500.0,0.00039452,120]
[339669013,1727820766338,-500.0,0.00039452,120]
[339669014,1727820766347,-2647.49,0.00039452,120]
[339669015,1727820766357,-778.95,0.00039452,120]
[339669016,1727820766367,-1825.45,0.00039452,120]
[339669017,1727820766377,-890.0,0.00039452,120]
[339669018,1727820766386,-500.0,0.00039452,120]
[339669019,1727820766397,-954.63,0.00039452,120]
[339669020,1727820766407,-500.0,0.00039452,120]
[339669021,1727820766416,-500.0,0.00039452,120]
[339669022,1727820766425,-500.0,0.00039452,120]
[339669023,1727820766434,-3668.63,0.00039452,120]
[339669024,1727820766443,-769.11,0.00039452,120]
[339669025,1727820766453,-5154.82,0.00039452,120]
[339669026,1727820766462,-500.0,0.00039452,120]
[339669027,1727820766471,-500.0,0.00039452,120]
[339669028,1727820766480,-500.0,0.00039452,120]
[339669029,1727820766490,-947.87,0.00039452,120]
[339669030,1727820766499,-500.0,0.00039452,120]
[339669031,1727820766509,-1126.54,0.00039452,120]
[339669032,1727820766518,-2928.52,0.00039452,120]
[339669033,1727820766528,-500.0,0.00039452,120]
[339669034,1727820766537,-500.0,0.00039452,120]
[339669035,1727820766546,-895.68,0.00039452,120]
[339669036,1727820766556,-500.0,0.00039452,120]
[339669037,1727820766566,-500.0,0.00039452,120]
[339669038,1727820766575,-3582.35,0.00039452,120]
[339669039,1727820766584,-556.53740305,0.00039452,120]
[339669040,1727820766594,-626.88,0.00039452,120]
[339669041,1727820766604,-3186.82,0.00039452,120]
[339669042,1727820766613,-500.0,0.00039452,120]
[339669043,1727820766622,-500.0,0.00039452,120]
[339669044,1727820766632,-881.7,0.00039452,120]
[339669045,1727820766641,-500.0,0.00039452,120]
[339669046,1727820766655,-500.0,0.00039452,120]
[339669047,1727820766665,-1958.05,0.00039452,120]
[339669048,1727820766675,-500.0,0.00039452,120]
[339669049,1727820766684,-557.58,0.00039452,120]
[339669050,1727820766818,-767.78,0.00039452,120]
[339669051,1727820766828,-5802.43,0.00039452,120]
[339669052,1727820766837,-500.0,0.00039452,120]
[339669053,1727820766847,-825.32,0.00039452,120]
[339669054,1727820766856,-859.85,0.00039452,120]
[339669055,1727820766866,-4024.18,0.00039452,120]
[339669056,1727820766875,-715.33,0.00039452,120]
[339669057,1727820766884,-500.0,0.00039452,120]
[339669058,1727820766894,-600.91,0.00039452,120]
[339669059,1727820766903,-1644.4,0.00039452,120]
[339669060,1727820766912,-500.0,0.00039452,120]
[339669061,1727820766921,-500.0,0.00039452,120]
[339669062,1727820766931,-1605.08,0.00039452,120]
[339669063,1727820766939,-500.0,0.00039452,120]
[339669064,1727820766948,-500.0,0.00039452,120]
[339669065,1727820766958,-3238.34,0.00039452,120]
[339669066,1727820766968,-500.0,0.00039452,120]
[339669067,1727820766977,-500.0,0.00039452,120]
[339669068,1727820766986,-1054.99,0.00039452,120]
[339669069,1727820766996,-500.0,0.00039452,120]
[339669070,1727820767006,-3916.65,0.00039452,120]
[339669071,1727820767015,-500.0,0.00039452,120]
[339669072,1727820767024,-705.94,0.00039452,120]
[339669073,1727820767034,-974.68,0.00039452,120]
[339669074,1727820767047,-500.0,0.00039452,120]
[339669075,1727820767056,-6174.97,0.00039452,120]
[339669076,1727820767065,-500.0,0.00039452,120]
[339669077,1727820767075,-658.12,0.00039452,120]
[339669078,1727820767084,-775.59,0.00039452,120]
[339669079,1727820767093,-500.0,0.00039452,120]
[339669080,1727820767102,-500.0,0.00039452,120]
[339669081,1727820767111,-500.0,0.00039452,120]
[339669082,1727820767120,-500.0,0.00039452,120]
[339669083,1727820767129,-1372.39,0.00039452,120]
[339669084,1727820767139,-1520.88,0.00039452,120]
[339669085,1727820767148,-500.0,0.00039452,120]
[339669086,1727820767157,-500.0,0.00039452,120]
[339669087,1727820767166,-1297.71,0.00039452,120]
[339669088,1727820767175,-500.0,0.00039452,120]
[339669089,1727820767184,-500.0,0.00039452,120]
[339669090,1727820767193,-3150.26,0.00039452,120]
[339669091,1727820767202,-500.0,0.00039452,120]
[339669092,1727820767211,-500.0,0.00039452,120]
[339669093,1727820767220,-3394.19,0.00039452,120]
[339669094,1727820767230,-5095.45,0.00039452,120]
[339669095,1727820767239,-500.0,0.00039452,120]
[339669096,1727820767248,-1142.69,0.00039452,120]
[339669097,1727820767257,-1053.24,0.00039452,120]
[339669098,1727820767268,-2187.58,0.00039452,120]
[339669099,1727820767277,-999.0,0.00039452,120]
[339669100,1727820767287,-4714.56,0.00039452,120]
[339669101,1727820767299,-500.0,0.00039452,120]
[339669102,1727820767309,-1671.69,0.00039452,120]
[339669103,1727820767318,-3883.23,0.00039452,120]
[339669104,1727820767327,-500.0,0.00039452,120]
[339669105,1727820767337,-17549.28,0.00039452,120]
[339669106,1727820767346,-1292.14,0.00039452,120]
[339669107,1727820767356,-788.0,0.00039452,120]
[339669108,1727820767366,-500.0,0.00039452,120]
[339669109,1727820767376,-638.54,0.00039452,120]
[339669110,1727820767385,-500.0,0.00039452,120]
[339669111,1727820767395,-396.01,0.00039452,7]
[339669112,1727820767404,-1235.86,0.00039452,120]
[339669113,1727820767415,-380.25468423,0.00039452,120]
[339669114,1727820767424,-2860.26,0.00039452,120]
[339669115,1727820767433,-1610.29,0.00039452,120]
[339669116,1727820767443,-500.0,0.00039452,120]
[339669117,1727820767452,-500.0,0.00039452,120]
[339669118,1727820767462,-712.51,0.00039452,120]
[339669119,1727820767471,-2386.75,0.00039452,120]
[339669120,1727820767480,-527.04549691,0.00039452,120]
[339669121,1727820767490,-806.81,0.00039452,120]
[339669122,1727820767499,-500.0,0.00039452,120]
[339669123,1727820767508,-500.0,0.00039452,120]
[339669124,1727820767518,-4893.53,0.00039452,120]
[339669125,1727820767527,-767.39,0.00039452,120]
[339669126,1727820767538,-500.0,0.00039452,120]
[339669127,1727820767547,-825.12,0.00039452,120]
[339669128,1727820767556,-500.0,0.00039452,120]
[339669129,1727820767566,-1123.02,0.00039452,120]
[339669130,1727820767575,-1398.64,0.00039452,120]
[339669131,1727820767585,-2555.24,0.00039452,120]
[339669132,1727820767595,-3466.7,0.00039452,120]
[339669133,1727820767604,-2011.18,0.00039452,120]
[339669134,1727820767615,-500.0,0.00039452,120]
[339669135,1727820767624,-2209.57,0.00039452,120]
[339669136,1727820767633,-500.0,0.00039452,120]
[339669137,1727820767643,-1207.96,0.00039452,120]
[339669138,1727820767655,-503.65800414,0.00039452,120]
[339669139,1727820767665,-500.0,0.00039452,120]
[339669140,1727820767675,-4914.93,0.00039452,120]
[339669141,1727820767684,-2617.4,0.00039452,120]
[339669142,1727820767695,-1890.45,0.00039452,120]
[339669143,1727820767704,-500.0,0.00039452,120]
[339669144,1727820767715,-1649.36,0.00039452,120]
[339669145,1727820767725,-500.0,0.00039452,120]
[339669146,1727820767735,-500.0,0.00039452,120]
[339669147,1727820767744,-2149.87,0.00039452,120]
[339669148,1727820767753,-2406.64,0.00039452,120]
[339669149,1727820767763,-1461.25,0.00039452,120]
[339669150,1727820767772,-1084.08,0.00039452,120]
[339669151,1727820767781,-1568.55,0.00039452,120]
[339669152,1727820767791,-500.0,0.00039452,120]
[339669153,1727820767800,-4446.49,0.00039452,120]
[339669154,1727820767810,-1930.59,0.00039452,120]
[339669155,1727820767820,-500.0,0.00039452,120]
[339669156,1727820767830,-1023.78,0.00039452,120]
[339669157,1727820767839,-867.75,0.00039452,120]
[339669158,1727820767848,-2028.77,0.00039452,120]
[339669159,1727820767857,-1990.55,0.00039452,120]
[339669160,1727820767866,-500.0,0.00039452,120]
[339669161,1727820767876,-500.0,0.00039452,120]
[339669162,1727820767885,-500.0,0.00039452,120]
[339669163,1727820767894,-4386.65,0.00039452,120]
[339669164,1727820767903,-1031.31,0.00039452,120]
[339669165,1727820767914,-682.28,0.00039452,120]
[339669166,1727820767923,-500.0,0.00039452,120]
[339669167,1727820767932,-500.0,0.00039452,120]
[339669168,1727820767942,-500.0,0.00039452,120]
[339669169,1727820767951,-500.0,0.00039452,120]
[339669170,1727820767959,-500.0,0.00039452,2]
[339669171,1727820767968,-4452.22,0.00039452,120]
[339669172,1727820767978,-525.33,0.00039452,120]
[339669173,1727820767987,-959.26,0.00039452,120]
[339669174,1727820767997,-500.0,0.00039452,120]
[339669175,1727820768006,-500.0,0.00039452,120]
[339669176,1727820768016,-1661.65,0.00039452,120]
[339669177,1727820768025,-677.36,0.00039452,120]
[339669178,1727820768034,-500.0,0.00039452,120]
[339669179,1727820768043,-2137.91,0.00039452,120]
[339669180,1727820768052,-1601.79,0.00039452,120]
[339669181,1727820768061,-854.5,0.00039452,120]
[339669182,1727820768070,-500.0,0.00039452,120]
[339669183,1727820768079,-790.95,0.00039452,120]
[339669184,1727820768088,-500.0,0.00039452,120]
[339669185,1727820768097,-500.0,0.00039452,120]
[339669186,1727820768107,-500.0,0.00039452,120]
[339669187,1727820768115,-500.0,0.00039452,120]
[339669188,1727820768124,-4846.83,0.00039452,120]
[339669189,1727820768133,-500.0,0.00039452,120]
[339669190,1727820768144,-1114.17,0.00039452,120]
[339669191,1727820768154,-12554.0,0.00039452,21]
[339669192,1727820768163,-500.0,0.00039452,120]
[339669193,1727820768172,-1529.29,0.00039452,120]
[339669194,1727820768181,-709.79,0.00039452,120]
[339669195,1727820768190,-500.0,0.00039452,120]
[339669196,1727820768199,-1511.8,0.00039452,120]
[339669197,1727820768208,-1767.66,0.00039452,120]
[339669198,1727820768218,-877.21,0.00039452,120]
[339669199,1727820768227,-500.0,0.00039452,120]
[339669200,1727820768236,-945.09,0.00039452,120]
[339669201,1727820768246,-500.0,0.00039452,120]
[339669202,1727820768255,-1347.25,0.00039452,120]
[339669203,1727820768264,-1869.39,0.00039452,120]
[339669204,1727820768273,-1047.64,0.00039452,120]
[339669205,1727820768282,-1709.97,0.00039452,120]
[339669206,1727820768291,-2022.15,0.00039452,120]
[339669207,1727820768300,-602.32140359,0.00039452,120]
[339669208,1727820768309,-1933.11,0.00039452,120]
[339669209,1727820768318,-595.71,0.00039452,120]
[339669210,1727820768327,-1560.47,0.00039452,120]
[339669211,1727820768336,-3847.15,0.00039452,120]
[339669212,1727820768345,-500.0,0.00039452,120]
[339669213,1727820768354,-1415.25,0.00039452,120]
[339669214,1727820768363,-804.68,0.00039452,120]
[339669215,1727820768372,-500.0,0.00039452,7]
[339669216,1727820768382,-670.45,0.00039452,120]
[339669217,1727820768391,-556.97,0.00039452,120]
[339669218,1727820768400,-1420.1,0.00039452,120]
[339669219,1727820768410,-2451.79,0.00039452,120]
[339669220,1727820768419,-500.0,0.00039452,120]
[339669221,1727820768428,-837.57,0.00039452,120]
[339669222,1727820768438,-5533.52,0.00039452,120]
[339669223,1727820768447,-1738.11,0.00039452,120]
[339669224,1727820768457,-980.72,0.00039452,120]
[339669225,1727820768466,-500.0,0.00039452,120]
[339669226,1727820768474,-500.0,0.00039452,120]
[339669227,1727820768483,-6787.03,0.00039452,120]
[339669228,1727820768492,-615.04,0.00039457,30]
[339669229,1727820768502,-6495.3997574,0.00039473,2]
[339669230,1727820768511,-80716.6679476,0.00039473,2]
[339669231,1727820768520,-5000.0,0.00039478,30]
[339669232,1727820768529,-1279.33159523,0.0003948,30]
[339669233,1727820768539,-6423.46439141,0.00039482,30]
[339669234,1727820768548,-477.61554845,0.00039493,30]
[339669235,1727820768558,-10000.0,0.000395,14]
[339669236,1727820768568,-10000.0,0.000395,10]
[339669237,1727820768577,-5000.0,0.000395,30]
[339669238,1727820768586,-1058818.9631,0.000395,120]
[339669239,1727820768596,-5138.0,0.000395,120]
[339669240,1727820768605,-100000.0,0.000395,120]
[339669241,1727820768614,-807.6776208,0.000395,30]
[339669242,1727820768624,-1000000.0,0.000395,120]
[339669243,1727820768633,-45485.01788507,0.000395,90]
[339669244,1727820768643,-2110.0,0.000395,2]
[339669245,1727820768654,-42140.699908,0.00039502,30]
[339669246,1727820768664,-1279.33159523,0.00039509,30]
[339669247,1727820768673,-200.0,0.00039511,30]
[339669248,1727820768682,-42140.699908,0.00039518,30]
[339669249,1727820768691,-159.0,0.0003952,4]
[339669250,1727820768701,-2876.92,0.00039528,30]
[339669251,1727820768710,-5000.0,0.00039529,30]
[339669252,1727820768719,-3180.15428054,0.00039536,30]
[339669253,1727820768730,-200.0,0.00039536,30]
[339669254,1727820768739,-5000.0,0.00039543,30]
[339669255,1727820768748,-4164.0968388,0.00039561,30]
[339669256,1727820768757,-799.0,0.00039562,5]
[339669257,1727820768767,-7286.97629792,0.00039562,30]
[339669258,1727820768776,-345.52169107,0.00039568,30]
[339669259,1727820768786,-345.52169107,0.00039583,30]
[339669260,1727820768796,-595.37,0.00039587,30]
[339669261,1727820768804,-200.0,0.0003959,30]
[339669262,1727820768813,-5000.0,0.00039596,30]
[339669263,1727820768824,-5000.0,0.000396,30]
[339669264,1727820768833,-3180.15428054,0.00039607,30]
[339669265,1727820768842,-1196.36041,0.00039608,30]
[339669266,1727820768851,-7286.97629792,0.00039613,30]
[339669267,1727820768860,-42140.699908,0.00039613,30]
[339669268,1727820768869,-514.54932685,0.00039618,7]
[339669269,1727820768878,-593.08731422,0.00039618,7]
[339669270,1727820768888,-947.99133299,0.00039618,7]
[339669271,1727820768897,-5000.0,0.00039621,30]
[339669272,1727820768906,-477.61554845,0.00039625,30]
[339669273,1727820768915,-3180.15428054,0.00039627,30]
[339669274,1727820768924,-5000.0,0.0003963,30]
[339669275,1727820768934,-5000.0,0.00039641,30]
[339669276,1727820768943,-28591.73270575,0.00039645,30]
[339669277,1727820768952,-5000.0,0.00039646,30]
[339669278,1727820768961,-345.52169107,0.00039647,30]
[339669279,1727820768970,-6423.46439141,0.00039655,30]
[339669280,1727820768979,-6423.46439141,0.00039655,30]
[339669281,1727820768989,-1279.33159523,0.00039664,30]
[339669282,1727820768998,-500.0,0.00039664,120]
[339669283,1727820769006,-4164.0968388,0.00039673,30]
[339669284,1727820769015,-28591.73270575,0.00039677,30]
[339669285,1727820769024,-4164.0968388,0.0003968,30]
[339669286,1727820769034,-28591.73270575,0.00039686,30]
[339669287,1727820769043,-4171.18,0.00039687,30]
[339669288,1727820769053,-1000.0,0.0003969,10]
[339669289,1727820769062,-756.64,0.00039692,30]
[339669290,1727820769071,-477.61554845,0.00039697,30]
[339669291,1727820769080,-7286.97629792,0.00039699,30]
[339669292,1727820769089,-5000.0,0.0003971,30]
[339669293,1727820769098,-5000.0,0.00039713,30]
[339669294,1727820769107,-1344.42,0.00039726,120]
[339669295,1727820769116,-609.72915598,0.00039726,120]
[339669296,1727820769125,-500.0,0.00039726,120]
[339669297,1727820769134,-223.55369108,0.00039726,120]
[339669298,1727820769143,-500.0,0.00039726,120]
[339669299,1727820769152,-543.259109,0.00039726,120]
[339669300,1727820769161,-500.0,0.00039726,120]
[339669301,1727820769170,-500.0,0.00039726,120]
[339669302,1727820769179,-502.72296723,0.00039726,120]
[339669303,1727820769188,-507.01488279,0.00039726,120]
[339669304,1727820769197,-500.0,0.00039726,120]
[339669305,1727820769206,-500.0,0.00039726,120]
[339669306,1727820769215,-500.0,0.00039726,120]
[339669307,1727820769224,-500.0,0.00039726,120]
[339669308,1727820769234,-500.0,0.00039726,120]
[339669309,1727820769243,-500.0,0.00039726,120]
[339669310,1727820769252,-500.0,0.00039726,120]
[339669311,1727820769261,-501.83826847,0.00039726,120]
[339669312,1727820769271,-500.0,0.00039726,120]
[339669313,1727820769280,-501.88937752,0.00039726,120]
[339669314,1727820769290,-501.84201853,0.00039726,120]
[339669315,1727820769299,-500.0,0.00039726,120]
[339669316,1727820769308,-500.0,0.00039726,120]
[339669317,1727820769317,-500.0,0.00039726,120]
[339669318,1727820769326,-500.0,0.00039726,120]
[339669319,1727820769337,-502.13316298,0.00039726,120]
[339669320,1727820769347,-500.0,0.00039726,120]
[339669321,1727820769356,-500.0,0.00039726,120]
[339669322,1727820769366,-500.0,0.00039726,120]
[339669323,1727820769375,-625.81,0.00039726,120]
[339669324,1727820769384,-1230.79,0.00039726,120]
[339669325,1727820769393,-1018.83,0.00039726,120]
[339669326,1727820769403,-500.0,0.00039726,120]
[339669327,1727820769412,-500.0,0.00039726,120]
[339669328,1727820769422,-2618.09,0.00039726,120]
[339669329,1727820769431,-635.74485053,0.00039726,120]
[339669330,1727820769440,-869.23,0.00039726,120]
[339669331,1727820769450,-1127.66,0.00039726,120]
[339669332,1727820769459,-500.0,0.00039726,120]
[339669333,1727820769469,-500.0,0.00039726,120]
[339669334,1727820769478,-1370.44,0.00039726,120]
[339669335,1727820769488,-500.0,0.00039726,120]
[339669336,1727820769497,-1287.86,0.00039726,120]
[339669337,1727820769507,-709.65,0.00039726,120]
[339669338,1727820769517,-500.0,0.00039726,120]
[339669339,1727820769526,-500.0,0.00039726,120]
[339669340,1727820769536,-500.0,0.00039726,120]
[339669341,1727820769546,-500.0,0.00039726,120]
[339669342,1727820769555,-500.0,0.00039726,120]
[339669343,1727820769565,-500.0,0.00039726,120]
[339669344,1727820769574,-944.29,0.00039726,120]
[339669345,1727820769584,-500.0,0.00039726,120]
[339669346,1727820769593,-500.0,0.00039726,120]
[339669347,1727820769603,-1933.88,0.00039726,120]
[339669348,1727820769613,-150.0,0.00039726,120]
[339669349,1727820769622,-500.0,0.00039726,120]
[339669350,1727820769632,-500.0,0.00039726,120]
[339669351,1727820769642,-523.09,0.00039726,120]
[339669352,1727820769657,-500.0,0.00039726,120]
[339669353,1727820769667,-500.0,0.00039726,120]
[339669354,1727820769676,-500.0,0.00039726,120]
[339669355,1727820769686,-500.0,0.00039726,120]
[339669356,1727820769697,-1869.94,0.00039726,120]
[339669357,1727820769706,-944.0,0.00039726,120]
[339669358,1727820769715,-687.72,0.00039726,120]
[339669359,1727820769724,-1628.22,0.00039726,120]
[339669360,1727820769735,-500.0,0.00039726,120]
[339669361,1727820769746,-2438.96,0.00039726,120]
[339669362,1727820769755,-1081.33,0.00039726,120]
[339669363,1727820769765,-500.0,0.00039726,120]
[339669364,1727820769774,-500.0,0.00039726,120]
[339669365,1727820769784,-1044.69,0.00039726,120]
[339669366,1727820769794,-500.0,0.00039726,2]
[339669367,1727820769804,-1113.88,0.00039726,120]
[339669368,1727820769813,-805.08,0.00039726,120]
[339669369,1727820769823,-500.0,0.00039726,120]
[339669370,1727820769833,-500.0,0.00039726,120]
[339669371,1727820769842,-500.0,0.00039726,120]
[339669372,1727820769851,-730.3,0.00039726,120]
[339669373,1727820769860,-1894.13,0.00039726,120]
[339669374,1727820769869,-500.0,0.00039726,120]
[339669375,1727820769878,-500.0,0.00039726,120]
[339669376,1727820769888,-845.87,0.00039726,120]
[339669377,1727820769898,-1585.53,0.00039726,120]
[339669378,1727820769908,-500.0,0.00039726,120]
[339669379,1727820769918,-500.0,0.00039726,120]
[339669380,1727820769928,-2817.76,0.00039726,120]
[339669381,1727820769938,-500.0,0.00039726,120]
[339669382,1727820769948,-500.0,0.00039726,120]
[339669383,1727820769957,-500.0,0.00039726,120]
[339669384,1727820769966,-803.86,0.00039726,120]
[339669385,1727820769975,-558.1,0.00039726,120]
[339669386,1727820769984,-500.0,0.00039726,120]
[339669387,1727820769993,-1367.78,0.00039726,120]
[339669388,1727820770003,-1130.66,0.00039726,120]
[339669389,1727820770012,-542.4,0.00039726,120]
[339669390,1727820770022,-762.58,0.00039726,120]
[339669391,1727820770031,-1312.78,0.00039726,120]
[339669392,1727820770042,-888.16,0.00039726,120]
[339669393,1727820770051,-879.45,0.00039726,120]
[339669394,1727820770061,-500.0,0.00039726,120]
[339669395,1727820770070,-500.0,0.00039726,120]
[339669396,1727820770080,-500.0,0.00039726,120]
[339669397,1727820770089,-500.0,0.00039726,120]
[339669398,1727820770098,-500.0,0.00039726,120]
[339669399,1727820770107,-500.0,0.00039726,120]
[339669400,1727820770116,-500.0,0.00039726,120]
[339669401,1727820770126,-500.0,0.00039726,120]
[339669402,1727820770136,-500.0,0.00039726,120]
[339669403,1727820770146,-500.0,0.00039726,120]
[339669404,1727820770155,-2684.85,0.00039726,120]
[339669405,1727820770164,-989.53,0.00039726,120]
[339669406,1727820770173,-512.93,0.00039726,120]
[339669407,1727820770183,-1296.3,0.00039726,120]
[339669408,1727820770192,-732.19,0.00039726,120]
[339669409,1727820770202,-552.27935095,0.00039726,120]
[339669410,1727820770212,-500.0,0.00039726,120]
[339669411,1727820770222,-1175.42,0.00039726,120]
[339669412,1727820770232,-595.96655221,0.00039726,120]
[339669413,1727820770241,-500.0,0.00039726,120]
[339669414,1727820770251,-500.0,0.00039726,120]
[339669415,1727820770260,-500.0,0.00039726,120]
[339669416,1727820770269,-500.0,0.00039726,120]
[339669417,1727820770278,-500.0,0.00039726,120]
[339669418,1727820770287,-789.08,0.00039726,120]